[Event "Titled Tuesday Blitz July 05 Late 2022"]
[White "Zakarian, David"]
[Black "Horak, Martin"]
[WhiteFideId "13301276"]
[BlackFideId "367095"]
[WhiteElo "2420"]
[BlackElo "1997"]
[Result "0-1"]
[Round "11"]
[TimeControl "180+1"]
[Date "2022.07.06"]
[WhiteClock "0:00:11"]
[BlackClock "0:00:08"]

1. e4 {[%clk 0:03:00]}  c5 {[%clk 0:03:00]} 2. b3 {[%clk 0:03:00]}  Nf6 {[%clk 0:02:54]} 3. e5 {[%clk 0:02:59]}  Nd5 {[%clk 0:02:54]} 4. Bb2 {[%clk 0:02:58]}  e6 {[%clk 0:02:53]} 5. Bc4 {[%clk 0:02:56]}  Nc6 {[%clk 0:02:52]} 6. Nf3 {[%clk 0:02:53]}  Be7 {[%clk 0:02:44]} 7. O-O {[%clk 0:02:51]}  O-O {[%clk 0:02:44]} 8. Nc3 {[%clk 0:02:51]}  Nb6 {[%clk 0:02:38]} 9. Bb5 {[%clk 0:02:44]}  Qc7 {[%clk 0:02:38]} 10. Ne4 {[%clk 0:02:42]}  a6 {[%clk 0:02:21]} 11. Bxc6 {[%clk 0:02:38]}  Qxc6 {[%clk 0:02:21]} 12. Re1 {[%clk 0:02:39]}  d5 {[%clk 0:02:12]} 13. exd6 {[%clk 0:02:34]}  Bxd6 {[%clk 0:02:12]} 14. Nxd6 {[%clk 0:02:34]}  Qxd6 {[%clk 0:02:13]} 15. Ne5 {[%clk 0:02:35]}  Nd5 {[%clk 0:02:09]} 16. Qh5 {[%clk 0:02:23]}  Nf6 {[%clk 0:02:06]} 17. Qh4 {[%clk 0:02:00]}  b5 {[%clk 0:02:00]} 18. Rad1 {[%clk 0:01:56]}  Bb7 {[%clk 0:01:49]} 19. d4 {[%clk 0:01:56]}  Qd5 {[%clk 0:01:35]} 20. f3 {[%clk 0:01:44]}  c4 {[%clk 0:01:28]} 21. Bc1 {[%clk 0:01:36]}  Nd7 {[%clk 0:00:52]} 22. Qg3 {[%clk 0:01:15]}  f6 {[%clk 0:00:41]} 23. bxc4 {[%clk 0:01:02]}  bxc4 {[%clk 0:00:38]} 24. Ng4 {[%clk 0:00:49]}  Kh8 {[%clk 0:00:32]} 25. Ne3 {[%clk 0:00:47]}  Qb5 {[%clk 0:00:24]} 26. Ba3 {[%clk 0:00:45]}  Rfe8 {[%clk 0:00:19]} 27. Rb1 {[%clk 0:00:46]}  Qc6 {[%clk 0:00:17]} 28. Qd6 {[%clk 0:00:34]}  Qxd6 {[%clk 0:00:15]} 29. Bxd6 {[%clk 0:00:35]}  Bd5 {[%clk 0:00:16]} 30. c3 {[%clk 0:00:30]}  Nf8 {[%clk 0:00:12]} 31. a4 {[%clk 0:00:20]}  a5 {[%clk 0:00:11]} 32. Rb6 {[%clk 0:00:17]}  Ng6 {[%clk 0:00:10]} 33. Kf2 {[%clk 0:00:16]}  h6 {[%clk 0:00:09]} 34. Reb1 {[%clk 0:00:11]}  Ne7 {[%clk 0:00:08]} 0-1


[Site "https://www.chess.com"]